[Event "Asian Amateur-ch Open 2022"]
[Site "Muscat"]
[Date "2022.10.02"]
[Round "3.20"]
[White "Nadeem Aziz"]
[Black "UMER S.M"]
[Result "0-1"]
[ECO "E98"]
[WhiteElo "1797"]
[BlackElo "1631"]
[Annotator "NA RC COMBH"]
[PlyCount "96"]
[EventDate "2022.09.29"]
[EventType "swiss"]
[SourceTitle "playchess.com"]
[Source "ChessBase"]
[SourceQuality "1"]
[TimeControl "5400+30"]

1. d4 {[%emt 0:00:01]} Nf6 {[%emt 0:00:03]} 2. Nf3 {[%emt 0:00:10]} g6 {[%emt 0:00:04]} 3. c4 {[%emt 0:00:06]} Bg7 {[%emt 0:00:05]} 4. Nc3 {[%emt 0:00:05]} O-O {[%emt 0:00:10]} 5. e4 {[%emt 0:00:02]} d6 {[%emt 0:00:02]} 6. Be2 {[%emt 0:00:06]} e5 {[%emt 0:00:08]} 7. O-O {[%emt 0:00:04]} Nc6 {[%emt 0:00:27]} 8. d5 {[%emt 0:00:02]} Ne7 {[%emt 0:00:05]} 9. Ne1 {[%emt 0:03:04]} Ne8 {[%emt 0:00:18]} 10. Nd3 {[%emt 0:00:06]} f5 {[%emt 0:00:46]} 11. f3 {[%emt 0:00:02]} f4 {[%emt 0:00:19]} 12. Bd2 {[%emt 0:00:03]} g5 {[%emt 0:00:31]} 13. c5 {[%emt 0:00:27]} h5 {[%emt 0:00:52]} 14. cxd6 {[%emt 0:00:02]} cxd6 {[%emt 0:00:09]} 15. Nf2 {[%emt 0:02:08]} Ng6 {[%emt 0:09:51]} 16. Rc1 {[%emt 0:05:53]} Rf7 {[%emt 0:00:41]} 17. a4 {[%emt 0:09:35]} Nf6 {[%emt 0:04:16]} 18. h3 {[%emt 0:00:53]} Bf8 {[%emt 0:03:28]} 19. Qc2 {[%emt 0:01:12]} a6 {[%emt 0:14:59]} 20. b4 {[%emt 0:07:33]} g4 {[%emt 0:23:47]} 21. hxg4 {[%emt 0:04:49]} hxg4 {[%emt 0:01:02]} 22. fxg4 {[%emt 0:02:43]} Rh7 {[%emt 0:04:59]} 23. Qd1 {[%emt 0:09:19]} Rh4 {[%emt 0:19:16]} 24. a5 {[%emt 0:09:22]} Bd7 {[%emt 0:09:20]} 25. Na4 {[%emt 0:02:35]} Qe7 {[%emt 0:00:27]} 26. Nb6 {[%emt 0:00:12]} Rd8 {[%emt 0:00:03]} 27. Rc7 {[%emt 0:04:12]} Rh8 {[%emt 0:02:33]} 28. Rxb7 {[%emt 0:04:19]} Qh7 {[%emt 0:01:20]} 29. Nh3 {[%emt 0:00:28]} Nxe4 {[%emt 0:01:57]} 30. Nxd7 {[%emt 0:14:11]} Rxd7 {[%emt 0:00:11]} 31. Rxd7 {[%emt 0:00:02]} Qxd7 {[%emt 0:00:02]} 32. Qc2 {[%emt 0:02:01]} Qa7+ {[%emt 0:00:56]} 33. Kh2 {[%emt 0:00:02]} Qd4 {[%emt 0:00:54]} 34. Be1 {[%emt 0:08:39]} Ne7 {[%emt 0:01:19]} 35. Bxa6 {[%emt 0:01:43]} Ng5 {[%emt 0:00:53]} 36. Bf2 {[%emt 0:00:36]} Qxb4 {[%emt 0:00:23]} 37. Be1 {[%emt 0:01:53]} Qa3 {[%emt 0:01:06]} 38. Be2 {[%emt 0:04:24]} Nxh3 {[%emt 0:00:30]} 39. Bf3 {[%emt 0:03:15]} Ng5+ {[%emt 0:00:24]} 40. Kg1 {[%emt 0:00:05]} Qe3+ {[%emt 0:00:28]} 41. Qf2 {[%emt 0:00:39]} Nxf3+ {[%emt 0:00:26]} 42. gxf3 {[%emt 0:00:02]} Nxd5 {[%emt 0:00:37]} 43. a6 {[%emt 0:00:20]} Rh7 {[%emt 0:00:18]} 44. Qxe3 {[%emt 0:02:13]} fxe3 {[%emt 0:00:35]} 45. Kg2 {[%emt 0:00:18]} Nf4+ {[%emt 0:00:11]} 46. Kg1 {[%emt 0:00:33]} e2 {[%emt 0:00:17]} 47. Rf2 {[%emt 0:00:01]} Nh3+ {[%emt 0:00:09]} 48. Kg2 {[%emt 0:00:16]} Nxf2 {[%emt 0:00:18]} 0-1

[Event "Asian Amateur-ch Open 2022"]
[Site "Muscat"]
[Date "2022.10.02"]
[Round "3.21"]
[White "Said Ahmed Ali Jidal Fadhil"]
[Black "Al Hinai, Qusay"]
[Result "1-0"]
[ECO "D11"]
[WhiteElo "1755"]
[BlackElo "1201"]
[Annotator "NA RC COMBH"]
[PlyCount "87"]
[EventDate "2022.09.29"]
[EventType "swiss"]
[SourceTitle "playchess.com"]
[Source "ChessBase"]
[SourceQuality "1"]
[TimeControl "5400+30"]

1. d4 {[%emt 0:00:01]} d5 {[%emt 0:00:02]} 2. Nf3 {[%emt 0:00:02]} Nf6 {[%emt 0:00:05]} 3. g3 {[%emt 0:00:24]} c6 {[%emt 0:00:58]} 4. Bg2 {[%emt 0:00:13]} Bg4 {[%emt 0:01:49]} 5. O-O {[%emt 0:00:42]} Nbd7 {[%emt 0:00:43]} 6. c4 {[%emt 0:01:20]} e6 {[%emt 0:03:38]} 7. Nc3 {[%emt 0:04:25]} Be7 {[%emt 0:02:37]} 8. Nd2 {[%emt 0:01:57]} h6 {[%emt 0:04:15]} 9. f3 {[%emt 0:00:49]} Bf5 {[%emt 0:03:51]} 10. e4 {[%emt 0:00:37]} dxe4 {[%emt 0:01:39]} 11. fxe4 {[%emt 0:00:33]} Bg4 {[%emt 0:00:45]} 12. Qb3 {[%emt 0:00:48]} Qb6 {[%emt 0:06:38]} 13. Qxb6 {[%emt 0:06:12]} axb6 {[%emt 0:01:24]} 14. h3 {[%emt 0:03:41]} Bh5 {[%emt 0:00:09]} 15. e5 {[%emt 0:00:42]} Nh7 {[%emt 0:00:56]} 16. Nde4 {[%emt 0:00:09]} O-O {[%emt 0:05:16]} 17. g4 {[%emt 0:08:18]} Bg6 {[%emt 0:00:01]} 18. Ne2 {[%emt 0:00:02]} Bxe4 {[%emt 0:01:38]} 19. Bxe4 {[%emt 0:00:02]} Ng5 {[%emt 0:02:55]} 20. Bg2 {[%emt 0:04:07]} Ra7 {[%emt 0:05:16]} 21. a3 {[%emt 0:02:38]} c5 {[%emt 0:03:31]} 22. d5 {[%emt 0:13:27]} exd5 {[%emt 0:00:41]} 23. Bxg5 {[%emt 0:01:50]} Bxg5 {[%emt 0:01:18]} 24. e6 {[%emt 0:12:10]} fxe6 {[%emt 0:01:14]} 25. cxd5 {[%emt 0:00:55]} Rxf1+ {[%emt 0:10:06]} 26. Rxf1 {[%emt 0:00:04]} Be3+ {[%emt 0:01:16]} 27. Kh1 {[%emt 0:00:10]} e5 {[%emt 0:02:27]} 28. d6 {[%emt 0:04:49]} Nf6 {[%emt 0:09:47]} 29. Nc3 {[%emt 0:11:50]} Ra8 {[%emt 0:16:02]} 30. Nd5 {[%emt 0:04:29]} Nxd5 {[%emt 0:01:32]} 31. Bxd5+ {[%emt 0:00:04]} Kh8 {[%emt 0:00:43]} 32. Rf7 {[%emt 0:03:43]} Rd8 {[%emt 0:02:14]} 33. d7 {[%emt 0:00:45]} Bg5 {[%emt 0:01:15]} 34. Kg2 {[%emt 0:06:55]} Bc1 {[%emt 0:02:38]} 35. b3 {[%emt 0:01:41]} Bg5 {[%emt 0:01:20]} 36. Kf3 {[%emt 0:01:26]} Bf6 {[%emt 0:01:18]} 37. Ke4 {[%emt 0:00:47]} Kh7 {[%emt 0:01:28]} 38. Kf5 {[%emt 0:00:59]} Rb8 {[%emt 0:03:02]} 39. Rxf6 {[%emt 0:01:56]} gxf6 {[%emt 0:00:14]} 40. Kxf6 {[%emt 0:00:02]} b5 {[%emt 0:00:47]} 41. Ke7 {[%emt 0:01:02]} b4 {[%emt 0:00:39]} 42. a4 {[%emt 0:01:02]} c4 {[%emt 0:00:57]} 43. Bxc4 {[%emt 0:00:08]} e4 {[%emt 0:00:00]} 44. d8=Q {[%emt 0:00:15]} 1-0

[Event "Asian Amateur-ch Open 2022"]
[Site "Muscat"]
[Date "2022.10.02"]
[Round "3.23"]
[White "Yasser Hamdan"]
[Black "Rafee, Mohd Hayel"]
[Result "0-1"]
[ECO "B90"]
[WhiteElo "1419"]
[BlackElo "1941"]
[Annotator "TA"]
[PlyCount "92"]
[EventDate "2022.09.29"]
[EventType "swiss"]
[SourceTitle "playchess.com"]
[Source "ChessBase"]
[SourceQuality "1"]
[TimeControl "5400+30"]

{[%evp 13,92,12,37,32,85,87,75,31,57,10,19,-25,-46,-40,0,0,0,0,0,0,0,-157,-81,-94,-91,-98,-98,-226,-223,-222,-228,-231,-208,-675,-680,-613,-580,-763,-723,-29986,-839,-888,-644,-1733,-1415,-29992,-29986,-29980,-698,-1648,-1297,-1449,-1449,-1336,-1330,-1842,-1812,-1881,-1819,-1713,-1339,-1147,-793,-808,-806,-993,-993,-945,-860,-1752,-1765,-11384,-6137,-6016,-2176,-29964,-29965,-29989,-29990,-29990,-29988]} 1. e4 {[%emt 0:00:07]} c5 {[%emt 0:00:06]} 2. Nf3 {[%emt 0:00:24]} d6 {[%emt 0:00:06]} 3. Nc3 {[%emt 0:00:35]} Nf6 {[%emt 0:00:18]} 4. d4 {[%emt 0:00:58]} cxd4 {[%emt 0:00:07]} 5. Nxd4 {[%emt 0:00:16]} a6 {[%emt 0:00:07]} 6. a4 {[%emt 0:01:08]} e5 {[%emt 0:00:40]} 7. Nf3 {[%emt 0:00:47]} Be6 {[%emt 0:00:43]} 8. Ng5 {[%emt 0:00:48] B90: Sicilian Najdorf: Unusual White 6th moves, 6 Be3 Ng4 and 6 Be3 e5.} Be7 {[%emt 0:11:57]} (8... Qc7 $14) 9. Nxe6 $16 {[%emt 0:00:47]} fxe6 {[%emt 0:00:06]} 10. Bc4 {[%emt 0:00:33] Inhibits d5. White is better.} (10. g3 $5 {[%cal Rf1h3]}) 10... Qd7 {[%emt 0:07:33] [#]} 11. Qe2 $146 {[%emt 0:00:43]} (11. O-O $14) ({Predecessor:} 11. O-O O-O 12. Be3 Nc6 13. h3 Rac8 14. Qe2 Na5 15. Ba2 Kh8 16. Rad1 Ne8 17. Bb6 {1-0 (27) Lou,Y (2472)-Marsac,H (1658) Europe Echecs INT 2021}) 11... Nc6 {[%emt 0:00:52]} 12. Bb3 {[%emt 0:03:20]} Nd4 {[%emt 0:01:48]} 13. Qd3 {[%emt 0:00:40]} O-O {[%emt 0:02:45]} 14. Ba2 {[%emt 0:00:25]} Rac8 {[%emt 0:00:51]} 15. Be3 {[%emt 0:00:34]} Nc6 $36 {[%emt 0:03:44][%mdl 2048] Black fights for an advantage.} 16. Qe2 {[%emt 0:03:08]} Kh8 {[%emt 0:00:50]} 17. h4 $2 {[%emt 0:00:30] [#]} (17. Rd1 $11) 17... Nb4 {[%emt 0:01:07]} (17... d5 $142 $1 {[%cal Rd5d4] Strongly threatening ...d4.} 18. exd5 exd5) 18. Bb3 {[%emt 0:00:17]} d5 {[%emt 0:01:19][%cal Bd6d5,Bd5d4][%mdl 32]} 19. Bg5 {[%emt 0:09:31]} d4 {[%emt 0:03:51] Black is more active.} 20. Rd1 {[%emt 0:02:45] This costs White the game.} (20. Nd1 $17 {was the only chance.}) 20... Qc6 $19 {[%emt 0:00:50]} 21. Bxf6 {[%emt 0:08:23]} Rxf6 {[%emt 0:00:51]} 22. Na2 {[%emt 0:05:35]} Nxc2+ {[%emt 0:08:33]} 23. Kf1 $2 {[%emt 0:01:20]} (23. Qxc2 Qxc2 24. Bxc2 Rxc2 25. O-O) 23... Ne3+ {[%emt 0:00:12]} 24. Kg1 {[%emt 0:00:17]} Nxd1 {[%emt 0:00:13]} 25. Qxd1 {[%emt 0:01:56]} Qxe4 {[%emt 0:00:18][%cal Of6f2]} 26. Nc1 {[%emt 0:02:56] [#]} Qb1 {[%emt 0:00:49]} (26... Rxf2 $142 $3 {[%mdl 512]} 27. Kxf2 Qe3+ 28. Kf1 Rf8+ 29. Qf3 Qxc1+ 30. Kf2 Rxf3+ 31. gxf3 Qxh1 32. Ke2 e4 33. fxe4 Qxe4+ 34. Kf1 d3 35. Kf2 Qe2+ 36. Kg1 Bc5+ 37. Kh1 Qf1+ 38. Kh2 Bd6#) 27. Kh2 {[%emt 0:00:41]} Rxf2 {[%emt 0:02:43]} 28. Bxe6 {[%emt 0:03:41] [#]} Qe4 $1 {[%emt 0:00:33][%csl Gf2][%cal Re4g2]} 29. Bh3 {[%emt 0:00:49]} (29. Rg1 Rcc2) 29... Rcc2 {[%emt 0:00:25]} 30. Rg1 {[%emt 0:00:18]} Qf4+ {[%emt 0:00:23]} (30... Rf3 $142 31. Qxc2 Qxc2 32. Kh1 Rf8 33. Na2 Qxb2 34. Nc1 e4 35. Be6 d3 36. a5 d2 37. Ne2 Qc2 38. Nd4 d1=Q 39. Nxc2 Rf1 40. Ne1 Rxg1+ 41. Kxg1 Qxe1+ 42. Kh2 Bd6+ 43. g3 Qxg3+ 44. Kh1 Qh2#) 31. Kh1 {[%emt 0:00:02]} Qg3 {[%emt 0:00:35][%cal Og3h3]} 32. Qg4 {[%emt 0:03:31]} Qxg4 {[%emt 0:00:38]} 33. Bxg4 {[%emt 0:00:04]} e4 {[%emt 0:00:17]} 34. Nb3 {[%emt 0:00:49]} d3 {[%emt 0:00:40] aiming for ...e3.} 35. Nd4 {[%emt 0:00:15]} Rxb2 {[%emt 0:00:23] Threatens to win with ...e3.} 36. Rc1 {[%emt 0:00:16] [#]} Rbc2 $1 {[%emt 0:00:09]} 37. Nxc2 {[%emt 0:00:12]} Rxc2 {[%emt 0:00:25][%mdl 4096] Endgame KRB-KRB} 38. Re1 {[%emt 0:00:17]} Rc4 {[%emt 0:01:09] ...g6 is the strong threat.} 39. Kh2 {[%emt 0:03:45]} g6 {[%emt 0:01:48] And now ...Bb4 would win.} 40. h5 {[%emt 0:01:05]} Kg7 {[%emt 0:00:17]} 41. hxg6 {[%emt 0:00:07]} hxg6 {[%emt 0:00:45] Hoping for ...Bb4.} 42. Rb1 {[%emt 0:00:14]} Bd6+ {[%emt 0:00:34]} 43. Kh3 {[%emt 0:02:00]} Bb4 {[%emt 0:01:12] ( -> ...e3)} 44. Be6 {[%emt 0:00:19]} Rd4 {[%emt 0:00:31] Black mates.} 45. Rf1 {[%emt 0:03:43]} e3 {[%emt 0:01:14]} 46. Rf7+ {[%emt 0:00:13]} Kh6 {[%emt 0:00:35] Weighted Error Value: White=1.06/Black=0.87} 0-1

[Event "Asian Amateur-ch Open 2022"]
[Site "Muscat"]
[Date "2022.10.02"]
[Round "3.24"]
[White "Salim Issa, Ali Shamas"]
[Black "Osama, Abuhmeidan"]
[Result "1/2-1/2"]
[ECO "D20"]
[WhiteElo "1886"]
[BlackElo "1416"]
[Annotator "NA RC COMBH"]
[PlyCount "85"]
[EventDate "2022.09.29"]
[EventType "swiss"]
[SourceTitle "playchess.com"]
[Source "ChessBase"]
[SourceQuality "1"]
[TimeControl "5400+30"]

1. d4 {[%emt 0:00:03]} d5 {[%emt 0:00:49]} 2. c4 {[%emt 0:00:12]} dxc4 {[%emt 0:01:00]} 3. Nc3 {[%emt 0:00:08]} Nf6 {[%emt 0:00:41]} 4. e4 {[%emt 0:00:25]} c6 {[%emt 0:04:33]} 5. e5 {[%emt 0:00:16]} Nd5 {[%emt 0:00:19]} 6. Bxc4 {[%emt 0:00:10]} Bf5 {[%emt 0:01:45]} 7. Qb3 {[%emt 0:02:34]} e6 {[%emt 0:01:14]} 8. Bxd5 {[%emt 0:00:30]} cxd5 {[%emt 0:03:40]} 9. Qxb7 {[%emt 0:00:54]} Nd7 {[%emt 0:00:15]} 10. Nge2 {[%emt 0:00:26]} Be7 {[%emt 0:01:31]} 11. O-O {[%emt 0:02:08]} O-O {[%emt 0:00:06]} 12. Qa6 {[%emt 0:00:18]} Nb6 {[%emt 0:00:44]} 13. Ng3 {[%emt 0:00:42]} Bg6 {[%emt 0:01:12]} 14. f4 {[%emt 0:00:12]} f5 {[%emt 0:08:36]} 15. b3 {[%emt 0:01:41]} Bb4 {[%emt 0:01:22]} 16. Bb2 {[%emt 0:01:27]} Bxc3 {[%emt 0:03:57]} 17. Bxc3 {[%emt 0:00:03]} Qe7 {[%emt 0:00:44]} 18. Qa5 {[%emt 0:00:42]} Rfc8 {[%emt 0:01:00]} 19. Bb4 {[%emt 0:00:28]} Qh4 {[%emt 0:02:10]} 20. Bc5 {[%emt 0:00:09]} Qg4 {[%emt 0:09:00]} 21. Bxb6 {[%emt 0:02:22]} axb6 {[%emt 0:01:01]} 22. Qxb6 {[%emt 0:00:01]} Bf7 {[%emt 0:00:08]} 23. Rf3 {[%emt 0:01:09]} h5 {[%emt 0:00:54]} 24. h3 {[%emt 0:02:53]} Qg6 {[%emt 0:01:43]} 25. Nf1 {[%emt 0:00:18]} Rc2 {[%emt 0:02:45]} 26. Rg3 {[%emt 0:00:16]} Qh6 {[%emt 0:01:01]} 27. Rg5 {[%emt 0:00:02]} g6 {[%emt 0:03:03]} 28. Ng3 {[%emt 0:01:23]} Kh7 {[%emt 0:02:53]} 29. Qb7 {[%emt 0:00:06]} Qf8 {[%emt 0:00:32]} 30. Qb5 {[%emt 0:01:16]} Raxa2 {[%emt 0:03:38]} 31. Rxa2 {[%emt 0:00:04]} Rxa2 {[%emt 0:00:02]} 32. Kh2 {[%emt 0:00:25]} h4 {[%emt 0:03:52]} 33. Ne2 {[%emt 0:00:18]} Qc8 {[%emt 0:07:29]} 34. Ng1 {[%emt 0:02:19]} Qc1 {[%emt 0:04:15]} 35. Qd7 {[%emt 0:00:41]} Qxf4+ {[%emt 0:03:46]} 36. Kh1 {[%emt 0:00:24]} Kg7 {[%emt 0:01:39]} 37. Qe7 {[%emt 0:00:02]} Ra1 {[%emt 0:06:11]} 38. Rxg6+ {[%emt 0:00:50]} Kxg6 {[%emt 0:02:06]} 39. Qf6+ {[%emt 0:00:02]} Kh7 {[%emt 0:01:42]} 40. Qxf7+ {[%emt 0:00:06]} Kh8 {[%emt 0:00:08]} 41. Qf8+ {[%emt 0:00:17]} Kh7 {[%emt 0:00:56]} 42. Qf7+ {[%emt 0:00:02]} Kh8 {[%emt 0:00:16]} 43. Qf8+ {[%emt 0:00:07]} 1/2-1/2

[Event "Asian Amateur-ch Open 2022"]
[Site "Muscat"]
[Date "2022.10.02"]
[Round "3.25"]
[White "Ahmed Waqqas, Alawlaqi"]
[Black "Sharaf, Khaleel"]
[Result "0-1"]
[ECO "C12"]
[WhiteElo "1417"]
[BlackElo "1874"]
[Annotator "NA RC COMBH"]
[PlyCount "60"]
[EventDate "2022.09.29"]
[EventType "swiss"]
[SourceTitle "playchess.com"]
[Source "ChessBase"]
[SourceQuality "1"]
[TimeControl "5400+30"]

1. e4 {[%emt 0:00:16]} e6 {[%emt 0:00:18]} 2. d4 {[%emt 0:00:36]} d5 {[%emt 0:00:02]} 3. Nc3 {[%emt 0:00:09]} Nf6 {[%emt 0:00:09]} 4. Bg5 {[%emt 0:00:53]} Bb4 {[%emt 0:00:03]} 5. e5 {[%emt 0:00:43]} h6 {[%emt 0:00:02]} 6. Bd2 {[%emt 0:00:16]} Bxc3 {[%emt 0:00:03]} 7. bxc3 {[%emt 0:00:09]} Ne4 {[%emt 0:00:16]} 8. Qg4 {[%emt 0:00:59]} Kf8 {[%emt 0:00:02]} 9. Bd3 {[%emt 0:00:52]} Nxd2 {[%emt 0:00:04]} 10. Kxd2 {[%emt 0:00:08]} c5 {[%emt 0:00:02]} 11. Nf3 {[%emt 0:00:37]} c4 {[%emt 0:01:36]} 12. Be2 {[%emt 0:00:32]} b5 {[%emt 0:00:34]} 13. h4 {[%emt 0:05:30]} Nc6 {[%emt 0:00:21]} 14. a3 {[%emt 0:07:44]} a5 {[%emt 0:00:35]} 15. Qf4 {[%emt 0:00:52]} Bd7 {[%emt 0:01:52]} 16. g4 {[%emt 0:04:00]} b4 {[%emt 0:03:31]} 17. g5 {[%emt 0:02:17]} bxc3+ {[%emt 0:00:54]} 18. Ke3 {[%emt 0:02:44]} Ne7 {[%emt 0:01:30]} 19. Bf1 {[%emt 0:02:55]} hxg5 {[%emt 0:15:00]} 20. Nxg5 {[%emt 0:05:36]} Nf5+ {[%emt 0:00:17]} 21. Ke2 {[%emt 0:01:39]} Qb6 {[%emt 0:00:40]} 22. Rd1 {[%emt 0:00:40]} Qb2 {[%emt 0:00:54]} 23. Rc1 {[%emt 0:00:14]} Nxd4+ {[%emt 0:13:00]} 24. Kd1 {[%emt 0:01:22]} Nf5 {[%emt 0:01:45]} 25. Be2 {[%emt 0:01:29]} Qxa3 {[%emt 0:12:36]} 26. Bg4 {[%emt 0:04:27]} Qc5 {[%emt 0:03:38]} 27. Bxf5 {[%emt 0:00:22]} exf5 {[%emt 0:00:03]} 28. Rb1 {[%emt 0:00:17]} Re8 {[%emt 0:08:44]} 29. Rg1 {[%emt 0:02:50]} d4 {[%emt 0:00:42]} 30. Nf3 {[%emt 0:04:17]} d3 {[%emt 0:02:27]} 0-1

[Event "Asian Amateur-ch Open 2022"]
[Site "Muscat"]
[Date "2022.10.02"]
[Round "3.26"]
[White "Bagheri, Majid"]
[Black "Al Dhiyabi, Yousuf"]
[Result "1-0"]
[ECO "B54"]
[WhiteElo "1870"]
[BlackElo "1393"]
[Annotator "NA RC COMBH"]
[PlyCount "69"]
[EventDate "2022.09.29"]
[EventType "swiss"]
[SourceTitle "playchess.com"]
[Source "ChessBase"]
[SourceQuality "1"]
[TimeControl "5400+30"]

1. e4 {[%emt 0:00:05]} c5 {[%emt 0:01:17]} 2. Nf3 {[%emt 0:00:12]} d6 {[%emt 0:00:13]} 3. d4 {[%emt 0:00:11]} cxd4 {[%emt 0:00:07]} 4. Nxd4 {[%emt 0:00:14]} e6 {[%emt 0:00:49]} 5. c4 {[%emt 0:00:16]} Nc6 {[%emt 0:00:11]} 6. Nc2 {[%emt 0:00:16]} Nf6 {[%emt 0:02:03]} 7. Nc3 {[%emt 0:00:16]} Be7 {[%emt 0:00:54]} 8. Be3 {[%emt 0:00:27]} Ne5 {[%emt 0:00:56]} 9. Be2 {[%emt 0:03:24]} Qc7 {[%emt 0:07:54]} 10. b3 {[%emt 0:03:45]} Ned7 {[%emt 0:06:26]} 11. Nb5 {[%emt 0:02:39]} Qb8 {[%emt 0:00:34]} 12. f3 {[%emt 0:00:52]} Nc5 {[%emt 0:08:14]} 13. b4 {[%emt 0:03:25]} Na6 {[%emt 0:18:27]} 14. Qd2 {[%emt 0:02:40]} O-O {[%emt 0:01:27]} 15. O-O {[%emt 0:00:36]} Rd8 {[%emt 0:01:20]} 16. Rfd1 {[%emt 0:03:20]} Nc7 {[%emt 0:01:43]} 17. a4 {[%emt 0:05:49]} d5 {[%emt 0:04:13]} 18. exd5 {[%emt 0:01:50]} exd5 {[%emt 0:02:51]} 19. Bf4 {[%emt 0:02:09]} Nfe8 {[%emt 0:08:08]} 20. c5 {[%emt 0:05:59]} Be6 {[%emt 0:03:26]} 21. Qe3 {[%emt 0:05:54]} a6 {[%emt 0:04:14]} 22. Nc3 {[%emt 0:04:11]} Qc8 {[%emt 0:01:52]} 23. a5 {[%emt 0:00:31]} Nf6 {[%emt 0:02:14]} 24. Na4 {[%emt 0:01:31]} Nd7 {[%emt 0:02:52]} 25. Nd4 {[%emt 0:03:47]} Bf6 {[%emt 0:01:50]} 26. Rac1 {[%emt 0:01:18]} Bxd4 {[%emt 0:02:08]} 27. Qxd4 {[%emt 0:00:46]} Nb5 {[%emt 0:00:59]} 28. Bxb5 {[%emt 0:00:25]} axb5 {[%emt 0:00:10]} 29. Nb6 {[%emt 0:00:25]} Nxb6 {[%emt 0:00:43]} 30. cxb6 {[%emt 0:00:12]} Qd7 {[%emt 0:00:48]} 31. Rc7 {[%emt 0:00:14]} Qe8 {[%emt 0:00:33]} 32. Rxb7 {[%emt 0:01:11]} Rdc8 {[%emt 0:02:20]} 33. Ra7 {[%emt 0:03:37]} Rxa7 {[%emt 0:02:41]} 34. bxa7 {[%emt 0:00:10]} Qd7 {[%emt 0:08:17]} 35. Qc4 {[%emt 0:45:23]} 1-0

[Event "Asian Amateur-ch Open 2022"]
[Site "Muscat"]
[Date "2022.10.02"]
[Round "3.27"]
[White "Almuhaini, Abdulaziz"]
[Black "kloub.M"]
[Result "0-1"]
[ECO "C01"]
[WhiteElo "1392"]
[BlackElo "1687"]
[Annotator "NA RC COMBH"]
[PlyCount "44"]
[EventDate "2022.09.29"]
[EventType "swiss"]
[SourceTitle "playchess.com"]
[Source "ChessBase"]
[SourceQuality "1"]
[TimeControl "5400+30"]

1. e4 {[%emt 0:00:03]} e6 {[%emt 0:00:44]} 2. Nf3 {[%emt 0:00:27]} d5 {[%emt 0:00:17]} 3. exd5 {[%emt 0:00:18]} exd5 {[%emt 0:00:09]} 4. d4 {[%emt 0:00:13]} Nf6 {[%emt 0:00:11]} 5. Bd3 {[%emt 0:01:24]} Bd6 {[%emt 0:00:08]} 6. O-O {[%emt 0:02:00]} O-O {[%emt 0:00:10]} 7. c3 {[%emt 0:05:29]} Bg4 {[%emt 0:00:17]} 8. Re1 {[%emt 0:04:59]} Re8 {[%emt 0:03:46]} 9. Rxe8+ {[%emt 0:04:18]} Qxe8 {[%emt 0:00:09]} 10. Nbd2 {[%emt 0:01:05]} Nbd7 {[%emt 0:02:52]} 11. h3 {[%emt 0:01:51]} Bh5 {[%emt 0:00:19]} 12. Nf1 {[%emt 0:01:14]} Ne4 {[%emt 0:02:40]} 13. Qb3 {[%emt 0:14:20]} Nb6 {[%emt 0:20:48]} 14. a4 {[%emt 0:02:29]} c5 {[%emt 0:09:45]} 15. Bb5 {[%emt 0:09:15]} Qe6 {[%emt 0:01:25]} 16. a5 {[%emt 0:09:43]} Bxf3 {[%emt 0:13:09]} 17. gxf3 {[%emt 0:03:23]} Qg6+ {[%emt 0:05:38]} 18. Ng3 {[%emt 0:01:50]} Nxg3 {[%emt 0:02:21]} 19. axb6 {[%emt 0:05:13]} Nf5+ {[%emt 0:13:27]} 20. Kf1 {[%emt 0:04:17]} Nh4 {[%emt 0:07:24]} 21. Qxd5 {[%emt 0:01:34]} Re8 {[%emt 0:11:47]} 22. dxc5 {[%emt 0:01:46]} Qg2# {[%emt 0:04:04]} 0-1